bitfinex/quotes_BTCUSD_20251031
["timestamp","ask_amount","ask_price","bid_price","bid_amount"]
[1761885618621,22.37394421,110000.0,109990.0,1.37843535]
[1761885622248,22.37394421,110000.0,109990.0,1.36843536]
[1761885622463,22.37394421,110000.0,109990.0,0.68039656]
[1761885622676,22.37394421,110000.0,109990.0,1.36743536]
[1761885622880,22.37394421,110000.0,109990.0,1.26428698]
[1761885623297,22.37394421,110000.0,109990.0,1.30046926]
[1761885623514,22.37394421,110000.0,109990.0,1.26428698]
[1761885623763,22.37394421,110000.0,109990.0,1.27428697]
[1761885624288,22.37394421,110000.0,109990.0,1.31046925]
[1761885625385,22.37394421,110000.0,109990.0,1.30046926]
[1761885625603,22.37394421,110000.0,109990.0,1.31046925]
[1761885625816,22.37394421,110000.0,109990.0,1.30046926]
[1761885626498,10.00718891,110000.0,109990.0,5.07715357]
[1761885626759,0.0002,110050.0,110040.0,0.12722646]
[1761885626987,0.0002,110060.0,110050.0,3.61962364]
[1761885626988,0.0422,110060.0,110050.0,3.61962364]
[1761885627209,0.0408,110060.0,110050.0,5.30855621]
[1761885627451,0.0002,110110.0,110100.0,3.73284711]
[1761885627669,0.0002,110110.0,110100.0,4.49370987]
[1761885627890,0.00397154,110110.0,110100.0,4.51966586]
[1761885628108,0.10924,110140.0,110130.0,3.17330476]
[1761885628334,0.10924,110140.0,110130.0,3.92404925]
[1761885628556,0.15132,110140.0,110130.0,3.92404925]
[1761885628999,0.15132,110140.0,110130.0,3.86039177]
[1761885629221,0.02133394,110180.0,110170.0,0.12707633]
[1761885629413,0.17261394,110180.0,110170.0,0.83226889]
[1761885629666,0.17261394,110180.0,110170.0,0.81411513]
[1761885630121,0.17261394,110180.0,110170.0,0.91393413]
[1761885630338,0.13053394,110180.0,110170.0,0.91393413]
[1761885630578,0.13053394,110180.0,110170.0,0.95016462]
[1761885630814,0.04584984,110260.0,110220.0,0.00999999]
[1761885631035,0.04584984,110260.0,110240.0,0.08981901]
[1761885631254,0.04584984,110260.0,110250.0,0.01814058]
[1761885631475,0.04584984,110260.0,110250.0,0.10795959]
[1761885632126,0.06249406,110260.0,110250.0,0.08981901]
[1761885633202,0.08587406,110260.0,110250.0,0.08981901]
[1761885633429,0.06249406,110260.0,110250.0,0.08981901]
[1761885633650,0.08587406,110260.0,110250.0,0.08981901]
[1761885633862,0.04002422,110260.0,110250.0,0.08981901]
[1761885634084,0.15216422,110260.0,110250.0,0.08981901]
[1761885634312,0.00800935,110270.0,110260.0,3.45584586]
[1761885634558,0.0032,110300.0,110290.0,3.51312034]
[1761885634774,0.01017109,110350.0,110320.0,4.28074234]
[1761885634996,0.01017109,110350.0,110320.0,4.33326104]
[1761885635217,0.01017109,110350.0,110320.0,4.34326103]
[1761885635444,0.01017109,110350.0,110320.0,4.61375292]
[1761885635671,0.01017109,110350.0,110320.0,3.48303779]
[1761885635896,0.14610286,110350.0,110320.0,0.12679999]
[1761885636128,0.01017109,110350.0,110320.0,0.14497727]
[1761885636769,0.01017109,110350.0,110320.0,0.22629621]
[1761885636998,0.01017109,110350.0,110320.0,0.20816714]
[1761885637225,0.13704026,110350.0,110320.0,0.20816714]
[1761885637445,0.01017109,110350.0,110320.0,0.20816714]
[1761885637667,0.01017109,110350.0,110320.0,4.36210949]
[1761885637898,0.01017109,110350.0,110320.0,3.54816714]
[1761885638126,0.00736261,110330.0,110320.0,0.54816714]
[1761885638350,0.02545014,110330.0,110320.0,0.54816714]
[1761885639045,0.02400668,110330.0,110320.0,0.54816714]
[1761885639481,0.69720989,110350.0,110330.0,0.1168]
[1761885639482,0.70577791,110350.0,110330.0,0.1168]
[1761885639706,0.83264747,110350.0,110340.0,0.20661901]
[1761885639932,0.83264747,110350.0,110340.0,0.08981901]
[1761885640177,0.84880747,110350.0,110340.0,0.08981901]
[1761885640605,0.87218747,110350.0,110340.0,0.08981901]
[1761885641066,0.12689205,110330.0,110320.0,4.821e-05]
[1761885641292,0.82647085,110330.0,110320.0,0.08986722]
[1761885641512,0.83731085,110330.0,110320.0,0.08986722]
[1761885641947,0.99011085,110330.0,110320.0,0.08986722]
[1761885642619,0.96673085,110330.0,110320.0,0.08986722]
[1761885642829,0.96669085,110330.0,110320.0,0.08986722]
[1761885643483,0.99539085,110330.0,110320.0,0.08986722]
[1761885643748,0.81395385,110310.0,110300.0,0.00104261]
[1761885643930,0.81395385,110310.0,110300.0,0.09090984]
[1761885643931,0.83268714,110310.0,110300.0,0.09090984]
[1761885644869,0.83196359,110310.0,110300.0,0.09090984]
[1761885646406,0.8132303,110310.0,110300.0,0.09090984]
[1761885647438,0.8682603,110310.0,110300.0,0.09090984]
[1761885647690,0.47593163,110350.0,110300.0,0.09090984]
[1761885647691,0.6870388,110360.0,110320.0,3.13596744]
[1761885647921,0.8229586,110360.0,110340.0,0.08981901]
[1761885648139,0.6870388,110350.0,110340.0,0.08981901]
[1761885648370,0.01844525,110350.0,110340.0,0.08981901]
[1761885649055,0.17136525,110350.0,110340.0,0.08981901]
[1761885649286,0.17136525,110350.0,110340.0,0.08986723]
[1761885650194,0.12740525,110350.0,110340.0,0.22674777]
[1761885650407,0.12740525,110350.0,110340.0,0.56674777]
[1761885650618,0.17136525,110350.0,110340.0,0.56674777]
[1761885650831,0.17136525,110350.0,110340.0,0.60293005]
[1761885651043,0.17132525,110350.0,110340.0,0.60293005]
[1761885651472,0.17132525,110350.0,110340.0,0.56674777]
[1761885652339,0.17132525,110350.0,110340.0,0.42986723]
[1761885652562,0.17132525,110350.0,110340.0,0.08986723]
[1761885652780,0.17176587,110350.0,110340.0,0.08986723]
[1761885653700,0.12784587,110350.0,110340.0,0.21674778]
[1761885653970,0.12784587,110350.0,110340.0,0.58533626]
[1761885654405,0.17172587,110350.0,110340.0,0.62510598]
[1761885655288,0.17168587,110350.0,110340.0,0.6805806]
[1761885656142,0.17168587,110350.0,110340.0,0.66514103]
[1761885656388,0.12784587,110350.0,110340.0,0.66514103]
[1761885656592,0.17168587,110350.0,110340.0,0.66514103]
[1761885657019,0.12784587,110350.0,110340.0,0.67514102]
[1761885657229,0.09813398,110350.0,110340.0,0.67464627]
[1761885657674,0.09809398,110350.0,110340.0,0.66464628]
[1761885657881,0.09809398,110350.0,110340.0,0.67464627]
[1761885658090,0.09809398,110350.0,110340.0,0.66464628]
[1761885658518,0.09809398,110350.0,110340.0,0.67464627]
[1761885658734,0.09809398,110350.0,110340.0,0.66464628]
[1761885658949,0.09809398,110350.0,110340.0,0.67464627]
[1761885659206,0.09809398,110350.0,110340.0,0.61161423]
[1761885660276,0.09809398,110350.0,110340.0,0.69118608]
[1761885660692,0.09809398,110350.0,110340.0,0.68118609]
[1761885661115,0.09809398,110350.0,110340.0,0.69118608]
[1761885661332,0.09809398,110350.0,110340.0,0.6711861]
[1761885662226,0.09809398,110350.0,110340.0,0.3311861]
[1761885662645,0.05433398,110350.0,110340.0,0.3311861]
[1761885662895,0.09797398,110350.0,110340.0,0.31490812]
[1761885663139,0.09793398,110350.0,110340.0,0.31490812]
[1761885664219,0.09793398,110350.0,110340.0,0.23533627]
[1761885664870,0.09793398,110350.0,110340.0,0.21663096]
[1761885665087,0.09789398,110350.0,110340.0,0.29623623]
[1761885665754,0.05433398,110350.0,110340.0,0.29623623]
[1761885665973,0.09785398,110350.0,110340.0,0.29623623]
[1761885666607,0.10630306,110350.0,110340.0,0.16935568]
[1761885666880,0.10630306,110350.0,110340.0,0.15344421]
[1761885667092,0.09785398,110350.0,110340.0,0.15344421]
[1761885667309,0.09785398,110350.0,110340.0,0.18748147]
[1761885668436,0.09785398,110350.0,110340.0,0.31436202]
[1761885668658,0.54204953,110350.0,110340.0,0.16935568]
[1761885668872,0.09785398,110350.0,110340.0,0.18748147]
[1761885669337,0.54204953,110350.0,110340.0,0.17156307]
[1761885669549,0.54204953,110350.0,110340.0,0.15343728]
[1761885669791,0.09785398,110350.0,110340.0,0.28031783]
[1761885670003,0.09785398,110350.0,110340.0,0.15343728]
[1761885670222,0.05433398,110350.0,110340.0,0.29844362]
[1761885670440,0.09773398,110350.0,110340.0,0.21663096]
[1761885671321,0.09773398,110350.0,110340.0,0.16935568]
[1761885671569,0.09773398,110350.0,110340.0,0.18748147]
[1761885671790,0.09773398,110350.0,110340.0,0.1078762]
[1761885672706,0.09765398,110350.0,110340.0,0.18748147]
[1761885672917,0.09765398,110350.0,110340.0,0.31436202]
[1761885673144,0.09765398,110350.0,110340.0,0.29623623]
[1761885673603,0.09765398,110350.0,110340.0,0.16935568]
[1761885674109,0.09765398,110350.0,110340.0,0.18748147]
[1761885674347,0.10611106,110350.0,110340.0,0.18748147]
[1761885675262,0.19708106,110350.0,110340.0,0.18748147]
[1761885675484,0.55030661,110350.0,110340.0,0.16935568]
[1761885675754,0.55030661,110350.0,110340.0,0.15360267]
[1761885675972,0.50698661,110350.0,110340.0,0.15360267]
[1761885676182,0.50698661,110350.0,110340.0,0.57475675]
[1761885676183,0.06279106,110350.0,110340.0,0.57475675]
[1761885676442,5.606e-05,110370.0,110360.0,0.12685755]
[1761885676671,0.16069165,110370.0,110360.0,0.17180974]
[1761885676993,0.17919837,110370.0,110360.0,0.17180974]
[1761885677346,0.84457998,110370.0,110360.0,0.08981901]
[1761885677804,0.92605998,110370.0,110360.0,0.06397372]
[1761885678054,0.84457998,110370.0,110360.0,0.04799432]
[1761885678281,0.84457998,110370.0,110350.0,0.08209787]
[1761885678489,0.84457998,110370.0,110350.0,0.17191688]
[1761885679393,0.12685755,110360.0,110350.0,0.17191688]
[1761885679817,0.57952869,110360.0,110350.0,0.17191688]
[1761885680023,0.45267114,110360.0,110350.0,0.17191688]
[1761885680435,0.57952869,110360.0,110350.0,0.17191688]
[1761885680881,0.57952869,110360.0,110350.0,0.15379273]
[1761885681084,0.63483869,110360.0,110350.0,0.15379273]
[1761885681328,0.71631869,110360.0,110350.0,0.15379273]
[1761885681797,0.12686905,110350.0,110340.0,0.08214773]
[1761885682045,0.62266019,110350.0,110340.0,0.17196674]
[1761885682264,0.17846464,110350.0,110340.0,0.15384095]
[1761885682487,0.62266019,110350.0,110340.0,0.15384095]
[1761885682927,0.05159559,110350.0,110340.0,0.15384095]
[1761885683625,0.00847559,110350.0,110340.0,0.15384095]
[1761885683844,0.16043559,110350.0,110340.0,0.15384095]
[1761885684072,0.73150019,110350.0,110340.0,0.15384095]
[1761885684281,0.28730464,110350.0,110340.0,0.15384095]
[1761885684930,0.24422464,110350.0,110340.0,0.15384095]
[1761885685149,0.28726464,110350.0,110340.0,0.15384095]
[1761885686236,0.28726464,110350.0,110340.0,0.08986723]
[1761885686584,0.34257464,110350.0,110340.0,0.08986723]
[1761885686786,0.34257464,110350.0,110340.0,0.15388164]
[1761885687413,0.78677019,110350.0,110340.0,0.15388164]
[1761885687818,0.78677019,110350.0,110340.0,0.06406263]
[1761885688018,0.50306283,110340.0,110330.0,0.01493763]
[1761885688220,0.12689205,110330.0,110320.0,0.00104233]
[1761885688424,1.24257874,110330.0,110320.0,0.00109059]
[1761885688627,0.79838319,110330.0,110320.0,0.00109059]
[1761885688849,0.12692405,110310.0,110290.0,0.01813401]
[1761885689050,0.16992656,110300.0,110290.0,0.00013107]
[1761885689735,0.16992656,110300.0,110290.0,0.08995008]
[1761885690214,0.043,110300.0,110290.0,0.08995008]
[1761885690407,0.16992656,110300.0,110290.0,0.08995008]
[1761885690817,0.01999998,110360.0,110290.0,3.21687664]
[1761885691039,0.10892,110350.0,110340.0,0.53401456]
[1761885691502,0.10892,110350.0,110340.0,0.66089511]
[1761885691714,0.14212,110350.0,110340.0,0.66089511]
[1761885692140,0.14212,110350.0,110340.0,0.66102618]
[1761885692353,0.14212,110350.0,110340.0,0.21683063]
[1761885693974,0.14212,110350.0,110340.0,0.08995008]
[1761885694192,0.14212,110350.0,110340.0,0.23495642]
[1761885694406,0.14316218,110350.0,110340.0,0.21683063]
[1761885696813,0.09996218,110350.0,110340.0,0.21683063]
[1761885697028,0.14304218,110350.0,110340.0,0.21683063]
[1761885697467,0.14300218,110350.0,110340.0,0.21683063]
[1761885697897,0.14300218,110350.0,110340.0,0.08995008]
[1761885698331,0.58719773,110350.0,110340.0,0.08995008]
[1761885699215,0.71406678,110350.0,110340.0,0.08995008]
[1761885699445,0.58719773,110350.0,110340.0,0.08995008]
[1761885699671,0.75525678,110350.0,110340.0,0.08995008]
[1761885701207,0.80613678,110350.0,110340.0,0.08995008]
[1761885701896,0.09996218,110350.0,110340.0,0.08995008]
[1761885702180,0.14292218,110350.0,110340.0,0.21683063]
[1761885703049,0.14292218,110350.0,110340.0,0.08995008]
[1761885703266,0.14292218,110350.0,110340.0,0.21683063]
[1761885703696,0.14292218,110350.0,110340.0,0.08995008]
[1761885706438,0.58711773,110350.0,110340.0,0.08995008]
[1761885706645,0.14292218,110350.0,110340.0,0.08995008]
[1761885706855,0.14292218,110350.0,110340.0,0.10807587]
[1761885707805,0.19409218,110350.0,110340.0,0.10807587]
[1761885708549,0.32096123,110350.0,110340.0,0.10807587]
[1761885708763,0.14292218,110350.0,110340.0,0.08995008]
[1761885710102,0.32096123,110350.0,110340.0,0.10807587]
[1761885710313,0.76515678,110350.0,110340.0,0.08995008]
[1761885710909,0.32096123,110350.0,110340.0,0.08995008]
[1761885712153,0.26979123,110350.0,110340.0,0.08995008]
[1761885712375,0.14292218,110350.0,110340.0,0.08995008]
[1761885712626,0.71398678,110350.0,110340.0,0.08995008]
[1761885713129,0.22683123,110350.0,110340.0,0.08995008]
[1761885713360,0.32076123,110350.0,110340.0,0.08995008]
[1761885713598,0.26959123,110350.0,110340.0,0.08995008]
[1761885713827,0.22683123,110350.0,110340.0,0.08995008]
[1761885714062,0.26959123,110350.0,110340.0,0.08995008]
[1761885714749,0.32072123,110350.0,110340.0,0.08995008]
[1761885715738,0.71374678,110350.0,110340.0,0.08995008]
[1761885717172,0.76491678,110350.0,110340.0,0.08995008]
[1761885717472,0.14260218,110350.0,110340.0,0.21683063]
[1761885719912,0.14268218,110350.0,110340.0,0.21683063]
[1761885720510,0.14264218,110350.0,110340.0,0.08995008]
[1761885721374,0.14264218,110350.0,110340.0,0.21683063]
[1761885722062,0.14264218,110350.0,110340.0,0.08995008]
[1761885722468,0.08466411,110360.0,110340.0,0.08995008]
[1761885722680,0.13583411,110360.0,110340.0,0.10807587]
[1761885723380,0.6222346,110350.0,110340.0,0.08995008]
[1761885723594,0.17803905,110350.0,110340.0,0.10807587]
[1761885723819,0.6222346,110350.0,110340.0,0.08995008]
[1761885724257,0.17803905,110350.0,110340.0,0.08995008]
[1761885724712,0.6222346,110350.0,110340.0,0.08995008]
[1761885724915,0.6222346,110350.0,110340.0,0.10807587]
[1761885725921,0.08466411,110360.0,110340.0,0.10807587]
[1761885726113,0.12686905,110350.0,110340.0,0.10807587]
[1761885726318,0.17803905,110350.0,110340.0,0.10807587]
[1761885726715,0.12686905,110350.0,110340.0,0.10807587]
[1761885727929,0.01856278,110370.0,110350.0,0.12686705]
[1761885728170,0.01856278,110370.0,110360.0,0.08981901]
[1761885729399,0.23652884,110370.0,110360.0,0.08981901]
[1761885729808,0.23696936,110370.0,110360.0,0.08981901]
[1761885731703,0.91965047,110370.0,110360.0,0.08981901]
[1761885734744,0.98931047,110370.0,110360.0,0.08981901]
[1761885735580,0.91965047,110370.0,110360.0,0.08981901]
[1761885735972,0.98931047,110370.0,110360.0,0.08981901]
[1761885737770,0.12686422,110360.0,110340.0,0.00013107]
[1761885738024,0.80954533,110360.0,110350.0,0.08981901]
[1761885738223,0.85764533,110360.0,110350.0,0.08981901]
[1761885738426,0.17496422,110360.0,110350.0,0.08981901]
[1761885739912,0.85764533,110360.0,110350.0,0.08981901]
[1761885740693,0.92725533,110360.0,110350.0,0.08981901]
[1761885741372,0.92725533,110360.0,110340.0,0.14583107]
[1761885741373,0.12686905,110350.0,110340.0,0.14583107]
[1761885741600,0.85765016,110350.0,110340.0,0.23565008]
[1761885741811,0.20895905,110350.0,110340.0,0.23565008]
[1761885742469,0.12686905,110350.0,110340.0,0.23565008]
[1761885742917,0.20895905,110350.0,110340.0,0.23565008]
[1761885743138,0.89164016,110350.0,110340.0,0.23565008]
[1761885743617,0.96125016,110350.0,110340.0,0.23565008]
[1761885743833,0.89164016,110350.0,110340.0,0.23565008]
[1761885744058,0.89164016,110350.0,110340.0,0.08995008]
[1761885745472,0.96125016,110350.0,110340.0,0.00013107]
[1761885748135,0.96125016,110350.0,110340.0,0.10013107]
[1761885749036,3.42725145,110350.0,110340.0,0.10013107]
[1761885753404,1.33743244,110350.0,110340.0,0.10013107]
[1761885755271,0.96125016,110350.0,110340.0,0.10013107]
[1761885765117,0.99743244,110350.0,110340.0,0.10013107]
[1761885765840,0.12693807,110290.0,110270.0,0.13905195]
[1761885766050,0.82778837,110290.0,110270.0,0.1353163]
[1761885766290,0.86116837,110290.0,110280.0,0.10349901]
[1761885766491,0.90630837,110290.0,110280.0,0.10349901]
[1761885766693,0.97092837,110290.0,110280.0,0.08981901]
[1761885767740,0.90630837,110290.0,110280.0,0.10349901]
[1761885767947,0.90630837,110290.0,110280.0,0.10339796]
[1761885769786,0.82778837,110290.0,110280.0,0.10339796]
[1761885770428,0.87292837,110290.0,110280.0,0.10339796]
[1761885770873,0.90630837,110290.0,110280.0,0.10339796]
[1761885771516,0.6151239,110290.0,110280.0,0.10339796]
[1761885772697,0.6797439,110290.0,110280.0,0.08971796]
[1761885773521,0.6151239,110290.0,110280.0,0.10339796]
[1761885774871,0.6151239,110290.0,110280.0,0.08971796]
[1761885775742,0.6797439,110290.0,110280.0,0.08971796]
[1761885775952,0.12694958,110280.0,110270.0,0.01368]
[1761885776166,0.95508286,110280.0,110270.0,0.10349901]
[1761885776412,0.95508286,110280.0,110270.0,0.11717901]
[1761885776856,1.01970286,110280.0,110270.0,0.10342798]
[1761885777081,0.12697261,110260.0,110250.0,0.01361]
[1761885777300,0.51846925,110260.0,110250.0,0.10342901]
[1761885777517,0.56360925,110260.0,110250.0,0.10342901]
[1761885777739,0.62822925,110260.0,110250.0,0.01361]
[1761885777974,0.62822925,110260.0,110250.0,0.01355687]
[1761885779739,0.12699564,110240.0,110230.0,0.01361]
[1761885779940,0.39149664,110240.0,110230.0,0.11697901]
[1761885780095,0.39149664,110240.0,110230.0,0.13052901]
[1761885780308,0.55187063,110250.0,110230.0,0.13052901]
[1761885780509,0.39149664,110240.0,110230.0,0.17231065]
[1761885780695,0.59700104,110250.0,110240.0,0.01355]
[1761885780892,0.51848104,110250.0,110240.0,0.10385323]
[1761885781083,0.56362104,110250.0,110240.0,0.10385323]
[1761885781283,0.51848104,110250.0,110240.0,0.10385323]
[1761885781782,0.40056611,110260.0,110240.0,0.10385323]
[1761885781976,0.52753941,110260.0,110250.0,0.01355]
[1761885782355,0.12698412,110250.0,110240.0,0.09030323]
[1761885782555,0.56362076,110250.0,110240.0,0.10385323]
[1761885782761,0.59700076,110250.0,110240.0,0.10385323]
[1761885783145,1.0531174,110250.0,110240.0,0.00048422]
[1761885783348,0.95428904,110250.0,110240.0,0.00048422]
[1761885784830,0.20550412,110250.0,110240.0,0.01403422]
[1761885785041,0.88966904,110250.0,110240.0,0.01403422]
[1761885785695,0.01726166,110250.0,110240.0,0.01403422]
[1761885785902,0.18938578,110250.0,110240.0,0.01403422]
[1761885787275,0.97435298,110250.0,110240.0,0.00048422]
[1761885788719,1.40417199,110250.0,110240.0,0.00048422]
[1761885789351,1.16534713,110250.0,110240.0,0.00048422]
[1761885790252,1.7005062,110250.0,110240.0,0.00048422]
[1761885790431,1.16534713,110250.0,110240.0,0.00048422]
[1761885790624,1.16534713,110250.0,110220.0,0.0004]
[1761885790625,0.50318944,110230.0,110220.0,0.0004]
[1761885790832,1.11655373,110230.0,110220.0,0.0004]
[1761885791540,1.12544626,110230.0,110220.0,0.0004]
[1761885791882,3.21526527,110230.0,110220.0,0.0004]
[1761885792092,3.12544626,110230.0,110220.0,0.0004]
[1761885792498,2.6801062,110230.0,110220.0,0.0004]
[1761885792719,1.16162854,110230.0,110220.0,0.0004]
[1761885795986,3.16162854,110230.0,110220.0,0.0004]
[1761885798987,3.17585655,110230.0,110220.0,0.0004]
[1761885799197,3.26567556,110230.0,110220.0,0.0004]
[1761885799418,3.17585655,110230.0,110220.0,0.0004]
[1761885802257,1.17585655,110230.0,110220.0,0.0004]
[1761885802711,0.66557932,110230.0,110220.0,0.0421]
[1761885803139,0.65135131,110230.0,110220.0,0.0421]
[1761885803341,0.57234722,110230.0,110220.0,0.10849]
[1761885803960,0.61363722,110230.0,110220.0,0.10849]
[1761885804168,0.61363722,110230.0,110220.0,0.0421]
[1761885804592,0.71055722,110230.0,110220.0,0.0004]
[1761885808222,2.7467395,110230.0,110220.0,0.0004]
[1761885808404,3.0867395,110230.0,110220.0,0.0004]
[1761885808608,3.17655851,110230.0,110220.0,0.0004]
[1761885811369,3.90748359,110230.0,110220.0,0.0004]
[1761885813307,3.51539521,110230.0,110220.0,0.0004]
[1761885813888,3.90748359,110230.0,110220.0,0.0004]
[1761885815686,3.51539521,110230.0,110220.0,0.0004]
[1761885816271,3.90748359,110230.0,110220.0,0.0004]
[1761885816458,1.4255762,110230.0,110220.0,0.0004]
[1761885820028,1.4255053,110230.0,110220.0,0.0004]
[1761885826807,1.3955053,110230.0,110220.0,0.0004]
[1761885829363,1.87741269,110230.0,110220.0,0.0004]
[1761885829611,3.87741269,110230.0,110220.0,0.0004]
[1761885829810,0.12704174,110200.0,110190.0,0.11135007]
[1761885830018,0.99574789,110200.0,110190.0,0.09504007]
[1761885833238,1.05986789,110200.0,110190.0,0.09504007]
[1761885834126,1.05986789,110200.0,110190.0,0.02119007]
[1761885834532,1.45195627,110200.0,110190.0,0.02119007]
[1761885834741,1.05986789,110200.0,110190.0,0.02119007]
[1761885836781,1.45195627,110200.0,110190.0,0.02119007]
[1761885837502,0.01423241,110240.0,110210.0,0.05618226]
[1761885837711,0.01423241,110240.0,110230.0,1.38358293]
[1761885837914,0.39208838,110280.0,110250.0,0.12698389]
[1761885838150,0.1451769,110280.0,110270.0,0.07459]
[1761885838424,0.92935366,110280.0,110270.0,0.07459]
[1761885838646,0.12696109,110270.0,110260.0,0.17264901]
[1761885838863,0.51904947,110270.0,110260.0,0.17264901]
[1761885839075,0.51904947,110270.0,110260.0,0.2153733]
[1761885839511,0.57194504,110270.0,110260.0,0.2153733]
[1761885839729,0.61191504,110270.0,110260.0,0.02408429]
[1761885840161,0.61191504,110270.0,110260.0,0.06666429]
[1761885842355,0.67603504,110270.0,110260.0,0.02408429]
[1761885842558,0.67603504,110270.0,110260.0,0.00014429]
[1761885842695,0.67603504,110270.0,110260.0,0.04272429]
[1761885843101,0.67603504,110270.0,110260.0,0.00014429]
[1761885843881,0.61191504,110270.0,110260.0,0.04272429]
[1761885845142,0.67603504,110270.0,110260.0,0.00014429]
[1761885849635,0.91496628,110270.0,110260.0,0.00014429]
[1761885853313,0.12698412,110250.0,110210.0,0.08283]
[1761885853525,0.12698412,110250.0,110210.0,0.1731331]
[1761885853526,0.12701868,110220.0,110210.0,0.1731331]
[1761885853732,0.81093387,110220.0,110210.0,0.1518931]
[1761885854344,0.81093387,110220.0,110210.0,0.2080131]
[1761885854814,0.85078387,110220.0,110210.0,0.06207409]
[1761885857586,0.03045,110230.0,110210.0,0.18807538]
[1761885857779,0.16305971,110270.0,110230.0,0.1270064]
[1761885857780,0.13604423,110260.0,110230.0,0.1270064]
[1761885857983,0.12698478,110250.0,110240.0,0.17696901]
[1761885858306,0.12698478,110250.0,110240.0,0.21572901]
[1761885858521,0.81995942,110260.0,110240.0,0.34272465]
[1761885858876,0.81995942,110260.0,110250.0,0.06592]
[1761885859491,0.85879942,110260.0,110250.0,0.06592]
[1761885860101,0.85879942,110260.0,110250.0,0.06606449]
[1761885861159,0.81995942,110260.0,110250.0,0.06606449]
[1761885861331,0.85879942,110260.0,110250.0,0.06606449]
[1761885862108,0.85879942,110260.0,110250.0,0.02883449]
[1761885862308,0.85879942,110260.0,110250.0,0.06759449]
[1761885863637,0.91510942,110260.0,110250.0,0.00014449]
[1761885865081,0.91510942,110260.0,110250.0,0.03890449]
[1761885866330,0.90429578,110260.0,110250.0,0.03890449]
[1761885866595,0.84798578,110260.0,110250.0,0.03890449]
[1761885866798,0.84798578,110260.0,110250.0,0.06759449]
[1761885867759,0.84798578,110260.0,110250.0,0.12605449]
[1761885870375,0.80914578,110260.0,110250.0,0.12605449]
[1761885871786,0.80914578,110260.0,110250.0,0.12529476]
[1761885874244,0.84798578,110260.0,110250.0,0.12529476]
[1761885874450,0.84798578,110260.0,110250.0,0.06683476]
[1761885874710,0.12701868,110220.0,110210.0,0.14657771]
[1761885874934,0.81098225,110220.0,110210.0,0.23639672]
[1761885875169,0.81098225,110220.0,110210.0,0.15251901]
[1761885875396,4.838e-05,110220.0,110210.0,0.27954922]
[1761885875611,0.12706706,110220.0,110210.0,0.33800922]
[1761885876268,0.12706706,110220.0,110210.0,0.21097901]
[1761885876519,0.81098225,110220.0,110210.0,0.21097901]
[1761885878263,0.12706706,110220.0,110210.0,0.21097901]
[1761885879359,4.838e-05,110220.0,110210.0,1.39810669]
[1761885879597,0.12698666,110250.0,110230.0,0.12700021]
[1761885879816,0.12703487,110250.0,110240.0,0.08981901]
[1761885880075,0.12703487,110250.0,110240.0,0.21572901]
[1761885880539,0.81095006,110250.0,110240.0,0.21572901]
[1761885883229,0.81095006,110250.0,110240.0,0.15726901]
[1761885883862,0.81095006,110250.0,110240.0,0.21394901]
[1761885886439,0.12703233,110250.0,110240.0,0.34094465]
[1761885886660,0.81094752,110250.0,110240.0,0.21394901]
[1761885888899,0.12700716,110230.0,110220.0,0.08394032]
[1761885889114,0.81092235,110230.0,110220.0,0.27351769]
[1761885889352,0.81092235,110230.0,110220.0,0.30923769]
[1761885889580,0.81092235,110230.0,110220.0,0.18221901]
[1761885890876,0.92940235,110230.0,110220.0,0.08981901]
[1761885891081,0.12701868,110220.0,110210.0,0.08062]
[1761885891307,0.81093387,110220.0,110210.0,0.17043901]
[1761885891523,0.81093387,110220.0,110210.0,0.20615901]
[1761885892654,0.16274262,110250.0,110220.0,0.12701868]
[1761885892655,0.12703282,110250.0,110220.0,0.12701868]
[1761885892871,0.14125769,110250.0,110240.0,0.05999]
[1761885893090,0.12703282,110250.0,110240.0,0.14980901]
[1761885893337,0.12703282,110250.0,110240.0,0.20648901]
[1761885900080,0.81094801,110250.0,110240.0,0.20648901]
[1761885901076,0.12703282,110250.0,110240.0,0.20648901]
[1761885901484,0.81094801,110250.0,110240.0,0.20648901]
[1761885901650,0.12703282,110250.0,110240.0,0.20648901]
[1761885901847,0.81094801,110250.0,110240.0,0.20648901]
[1761885902051,0.12703233,110250.0,110240.0,0.20648901]
[1761885903098,0.81094752,110250.0,110240.0,0.20648901]
[1761885910288,0.6839634,110250.0,110240.0,0.33348465]
[1761885910488,4.821e-05,110250.0,110240.0,0.67348465]
[1761885910842,4.821e-05,110250.0,110240.0,0.73716236]
[1761885913699,4.821e-05,110250.0,110240.0,1.18212881]
[1761885913901,4.821e-05,110250.0,110240.0,1.22831108]
[1761885914103,4.821e-05,110250.0,110240.0,1.23373865]
[1761885916035,4.821e-05,110250.0,110240.0,1.24373864]
[1761885917094,4.821e-05,110250.0,110240.0,0.7887722]
[1761885917270,4.821e-05,110250.0,110240.0,0.70916693]
[1761885917589,4.821e-05,110250.0,110240.0,0.77325113]
[1761885920716,4.821e-05,110250.0,110240.0,0.91895113]
[1761885921525,4.821e-05,110250.0,110240.0,1.36391758]
[1761885923215,4.821e-05,110250.0,110240.0,0.91895113]
[1761885923409,4.821e-05,110250.0,110240.0,1.31050115]
[1761885923973,4.821e-05,110250.0,110240.0,0.91895113]
[1761885924175,4.821e-05,110250.0,110240.0,1.70205117]
[1761885924401,4.821e-05,110250.0,110240.0,1.31050115]
[1761885925399,4.821e-05,110250.0,110240.0,0.91895113]
[1761885929862,4.821e-05,110250.0,110240.0,0.88276885]
[1761885933638,0.12703233,110250.0,110240.0,0.61007321]
[1761885933855,0.12703233,110250.0,110240.0,0.33298465]
[1761885934829,0.12703233,110250.0,110240.0,0.20598901]
[1761885935361,0.12703233,110250.0,110240.0,0.33298465]
[1761885935726,4.821e-05,110250.0,110240.0,0.33298465]
[1761885936125,4.821e-05,110250.0,110240.0,0.67298465]
[1761885936327,4.821e-05,110250.0,110240.0,0.73706885]
[1761885936626,0.52458293,110280.0,110270.0,0.03519]
[1761885936830,0.52467039,110280.0,110270.0,0.03519]
[1761885937014,0.52467039,110280.0,110270.0,0.08404]
[1761885937217,0.55939039,110280.0,110270.0,0.08404]
[1761885937476,0.55939039,110280.0,110270.0,0.17385901]
[1761885937477,0.07975892,110280.0,110270.0,0.17385901]
[1761885937880,0.52467039,110280.0,110270.0,0.17385901]
[1761885938302,0.07975892,110280.0,110270.0,0.17385901]
[1761885940606,0.52467039,110280.0,110270.0,0.17385901]
[1761885941103,0.12696109,110270.0,110260.0,0.19455]
[1761885941307,0.57187256,110270.0,110260.0,0.28436901]
[1761885941519,0.57187256,110270.0,110260.0,0.31955901]
[1761885944422,0.60645256,110270.0,110260.0,0.27070901]
[1761885944599,0.63055256,110270.0,110260.0,0.27070901]
[1761885945493,0.57727147,110270.0,110260.0,0.27070901]
[1761885945967,0.54269147,110270.0,110260.0,0.32098901]
[1761885946177,0.51859147,110270.0,110260.0,0.32098901]
[1761885946379,0.51859147,110270.0,110260.0,0.17528901]
[1761885949349,0.96890185,110270.0,110260.0,0.12500901]
[1761885949472,0.96890185,110270.0,110260.0,0.11315092]
[1761885949473,1.01647185,110270.0,110260.0,0.11315092]
[1761885949873,0.12697261,110260.0,110250.0,0.05028]